bitfinex-derivatives/quotes_BNBF0:USTF0_20250904
["timestamp","ask_amount","ask_price","bid_price","bid_amount"]
[1756994912484,0.71643429,846.29,845.0,1.0573071]
[1756994912485,0.71643429,846.29,845.21,0.79241425]
[1756994913189,1.50434063,846.29,845.21,0.79241425]
[1756994913388,0.71643429,846.28,845.21,0.79241425]
[1756994913588,0.78790634,846.27,845.18,0.79241425]
[1756994913791,0.78790634,846.22,845.18,0.79241425]
[1756994913990,0.71643429,846.21,845.18,0.79241425]
[1756994914790,0.71643429,846.21,845.13,0.79241425]
[1756994914791,0.78790634,846.17,845.13,0.79241425]
[1756994915087,0.71643429,846.16,845.13,0.79241425]
[1756994917392,0.71643429,846.16,845.12,0.79241425]
[1756994917594,0.71643429,846.17,845.12,0.79241425]
[1756994918092,0.71643429,846.17,845.14,0.79241425]
[1756994918288,0.71643429,846.18,845.13,0.79241425]
[1756994918689,1.50434063,846.19,845.13,0.79241425]
[1756994918892,0.71643429,846.18,845.13,0.79241425]
[1756994919393,0.71643429,846.18,845.12,0.79241425]
[1756994920193,0.71643429,846.18,845.14,0.79241425]
[1756994920390,0.71643429,846.2,845.13,0.79241425]
[1756994920593,0.71643429,846.2,845.17,0.79241425]
[1756994920787,0.71643429,846.2,845.25,0.79241425]
[1756994920989,0.78790634,846.29,844.47,0.20578626]
[1756994920990,0.71643429,846.28,845.24,0.79241425]
[1756994921189,0.71643429,846.29,845.24,0.79241425]
[1756994921694,1.50434063,846.29,845.25,0.79241425]
[1756994921994,1.50434063,846.28,845.24,0.79241425]
[1756994922189,0.71643429,846.27,845.24,0.79241425]
[1756994922893,0.78790634,846.26,845.22,0.79241425]
[1756994923193,0.71643429,846.25,845.22,0.79241425]
[1756994923390,0.71643429,846.25,844.47,0.20578626]
[1756994923391,0.78790634,846.23,845.12,0.79241425]
[1756994923592,0.78790634,846.23,844.91,1.0573071]
[1756994923593,1.50434063,846.22,845.11,0.79241425]
[1756994923892,0.71643429,846.21,845.11,0.79241425]
[1756994924294,0.71643429,846.21,845.1,0.79241425]
[1756994924791,0.71643429,846.22,845.1,0.79241425]
[1756994925094,0.71451797,846.22,845.09,0.79241425]
[1756994925395,0.71451797,846.24,845.07,0.79241425]
[1756994925592,0.71451797,846.26,845.07,0.79241425]
[1756994927094,0.71451797,846.27,845.07,0.79241425]
[1756994927798,0.71451797,846.27,845.08,0.79241425]
[1756994927995,0.71451797,846.28,845.09,0.79241425]
[1756994928197,0.71451797,846.29,845.09,0.79241425]
[1756994928996,1.50242431,846.29,845.08,0.79241425]
[1756994929296,0.71451797,846.28,845.08,0.79241425]
[1756994929598,0.71451797,846.28,845.09,0.79241425]
[1756994929999,0.71451797,846.28,845.08,0.79241425]
[1756994930197,1.50242431,846.28,845.08,0.79241425]
[1756994930400,0.71451797,846.27,845.08,0.79241425]
[1756994931496,0.71451797,846.27,845.09,0.79241425]
[1756994931800,0.71451797,846.27,845.08,0.79241425]
[1756994932297,0.71451797,846.27,844.85,1.0573071]
[1756994932298,0.71451797,846.27,845.09,0.79241425]
[1756994932900,0.78790634,846.26,845.09,0.79241425]
[1756994933104,0.71451797,846.25,845.09,0.79241425]
[1756994933405,1.50242431,846.25,845.1,0.79241425]
[1756994933605,0.71451797,846.24,845.1,0.79241425]
[1756994934305,0.71451797,846.24,844.47,0.20578626]
[1756994934306,1.50242431,846.24,845.08,0.79241425]
[1756994934509,0.71451797,846.23,845.07,0.79241425]
[1756994934709,0.78790634,846.22,845.08,0.79241425]
[1756994934904,0.20561361,846.57,845.07,0.79241425]
[1756994934905,0.78790634,846.18,845.07,0.79241425]
[1756994935104,0.71451797,846.17,845.07,0.79241425]
[1756994936005,0.71451797,846.17,845.06,0.79241425]
[1756994936205,0.71451797,846.18,845.07,0.79241425]
[1756994936412,0.71451797,846.19,845.07,0.79241425]
[1756994936608,1.50242431,846.19,845.06,0.79241425]
[1756994936809,0.71451797,846.18,845.06,0.79241425]
[1756994937112,1.50242431,846.19,845.05,0.79241425]
[1756994937408,0.71451797,846.18,845.05,0.79241425]
[1756994937913,0.71451797,846.18,845.06,0.79241425]
[1756994938112,0.71451797,846.19,845.06,0.79241425]
[1756994938512,0.71451797,846.2,845.04,0.79241425]
[1756994938711,0.71451797,846.22,845.04,0.79241425]
[1756994939111,0.78790634,846.21,845.03,0.79241425]
[1756994939309,0.71451797,846.2,845.03,0.79241425]
[1756994939508,0.71451797,846.21,845.02,0.79241425]
[1756994939811,0.71451797,846.21,845.01,0.79241425]
[1756994940012,0.71451797,846.23,845.0,0.79241425]
[1756994940308,0.71451797,846.24,845.0,0.79241425]
[1756994940713,0.71451797,846.24,845.01,0.79241425]
[1756994940907,0.78790634,846.23,845.02,0.79241425]
[1756994941213,0.78790634,846.19,845.03,0.79241425]
[1756994941408,0.78790634,846.07,845.06,0.79241425]
[1756994941613,0.71451797,846.06,845.05,0.79241425]
[1756994941913,0.71451797,846.07,845.05,0.79241425]
[1756994942411,0.71451797,846.07,845.04,0.79241425]
[1756994943212,0.71451797,846.07,844.94,0.79241425]
[1756994943412,0.71451797,846.25,844.94,0.79241425]
[1756994944812,0.71451797,846.25,844.93,0.79241425]
[1756994945116,0.71451797,846.26,844.93,0.79241425]
[1756994946218,0.78790634,846.23,844.88,0.79241425]
[1756994946518,1.50112045,846.22,844.87,0.79241425]
[1756994946818,0.71321411,846.21,844.86,0.79241425]
[1756994947220,0.71321411,846.21,844.87,0.79241425]
[1756994948921,0.78790634,846.13,844.93,0.79241425]
[1756994949216,0.71321411,846.12,844.94,0.79241425]
[1756994949420,0.71321411,846.13,844.94,0.79241425]
[1756994949620,0.78790634,846.11,844.96,0.79241425]
[1756994949818,0.71321411,846.1,844.97,0.79241425]
[1756994950122,0.71321411,846.12,845.03,0.79241425]
[1756994950922,0.71321411,846.12,845.02,0.79241425]
[1756994953320,1.50112045,846.12,845.03,0.79241425]
[1756994953526,0.71321411,846.11,845.03,0.79241425]
[1756994954926,0.71321411,846.11,845.01,0.79241425]
[1756994955126,0.78790634,846.11,844.97,0.79241425]
[1756994955326,0.71321411,846.1,844.96,0.79241425]
[1756994955526,0.71321411,846.11,844.96,0.79241425]
[1756994956325,0.71339636,846.11,844.96,0.79241425]
[1756994956525,1.5013027,846.11,844.97,0.79241425]
[1756994956728,0.71339636,846.1,844.97,0.79241425]
[1756994956923,0.71339636,846.1,844.98,0.79241425]
[1756994957124,0.71339636,846.11,844.99,0.79241425]
[1756994957329,0.71339636,846.12,844.98,0.79241425]
[1756994957527,0.71339636,846.14,844.98,0.79241425]
[1756994958527,0.71339636,846.14,845.0,0.79241425]
[1756994958732,0.71339636,846.15,845.0,0.79241425]
[1756994959531,0.71339636,846.15,844.47,0.20578626]
[1756994959532,1.5013027,846.15,845.01,0.79241425]
[1756994959734,0.71339636,846.14,845.01,0.79241425]
[1756994960033,0.71339636,846.14,845.04,0.79241425]
[1756994960332,0.71339636,846.15,845.04,0.79241425]
[1756994960533,0.71339636,846.15,845.05,0.79241425]
[1756994961429,1.5013027,846.15,845.05,0.79241425]
[1756994961631,0.71339636,846.14,845.05,0.79241425]
[1756994961834,0.71339636,846.14,845.04,0.79241425]
[1756994962334,1.5013027,846.14,845.06,0.79241425]
[1756994962533,0.71339636,846.13,845.06,0.79241425]
[1756994963332,0.71339636,846.13,844.47,0.20578626]
[1756994963333,0.78790634,846.12,845.08,0.79241425]
[1756994963536,0.71339636,846.11,845.08,0.79241425]
[1756994964536,0.78790634,846.1,845.11,0.79241425]
[1756994964734,0.78790634,846.07,845.12,0.79241425]
[1756994964933,0.71339636,846.06,845.12,0.79241425]
[1756994965236,0.71339636,846.06,845.19,0.79241425]
[1756994965433,0.78790634,846.06,845.21,0.79241425]
[1756994965638,0.71339636,846.05,845.21,0.79241425]
[1756994965837,0.71339636,846.06,845.21,0.79241425]
[1756994966338,0.78790634,846.04,845.22,0.79241425]
[1756994966540,0.71339636,846.03,845.22,0.79241425]
[1756994967440,1.5013027,846.03,845.23,0.79241425]
[1756994967641,0.71339636,846.02,845.23,0.79241425]
[1756994968141,0.78790634,846.03,845.23,0.79241425]
[1756994968442,0.78790634,846.03,845.24,0.79241425]
[1756994968643,0.78790634,846.07,845.18,0.79241425]
[1756994968839,0.71615025,846.06,845.18,0.79241425]
[1756994969041,1.50405659,846.06,845.16,0.79241425]
[1756994969237,0.78790634,846.04,845.17,0.79241425]
[1756994969441,0.78790634,846.01,845.16,0.79241425]
[1756994969642,0.71613952,846.0,845.16,0.79241425]
[1756994969842,0.71613952,846.0,845.15,0.79241425]
[1756994970044,0.78790634,845.99,845.1,0.79241425]
[1756994970341,0.71613952,845.98,845.11,0.79241425]
[1756994972447,1.50404586,845.98,845.11,0.79241425]
[1756994972646,0.78790634,845.96,845.09,0.79241425]
[1756994972844,0.78790634,845.89,845.12,0.79241425]
[1756994973047,0.78790634,845.81,845.03,0.79241425]
[1756994973346,0.78790634,845.81,844.83,1.0573071]
[1756994973347,0.71613952,845.8,845.02,0.79241425]
[1756994973647,0.71613952,845.81,845.01,0.79241425]
[1756994973943,0.71613952,845.82,845.01,0.79241425]
[1756994974348,0.71613952,845.82,845.03,0.79241425]
[1756994974546,1.50404586,845.84,845.03,0.79241425]
[1756994974746,0.78790634,845.81,845.04,0.79241425]
[1756994974943,0.71613952,845.8,845.02,0.79241425]
[1756994975148,0.71613952,845.84,845.02,0.79241425]
[1756994975546,0.71613952,845.85,845.03,0.79241425]
[1756994975745,0.71613952,845.87,845.03,0.79241425]
[1756994975944,0.71613952,845.87,845.02,0.79241425]
[1756994976249,1.50404586,845.88,845.03,0.79241425]
[1756994976449,0.71613952,845.87,845.02,0.79241425]
[1756994976647,0.71613952,845.88,845.02,0.79241425]
[1756994976949,0.71613952,845.88,845.01,0.79241425]
[1756994977145,0.71613952,845.9,845.01,0.79241425]
[1756994977346,0.71613952,845.9,845.0,0.79241425]
[1756994977546,1.50404586,845.91,845.01,0.79241425]
[1756994977745,0.71613952,845.9,845.02,0.79241425]
[1756994978547,0.71613952,845.9,845.03,0.79241425]
[1756994978751,1.50404586,845.92,845.04,0.79241425]
[1756994979051,0.71613952,845.91,845.07,0.79241425]
[1756994979252,0.71613952,846.01,845.07,0.79241425]
[1756994981552,0.78790634,845.71,844.72,0.79241425]
[1756994981752,0.71613952,845.7,844.72,0.79241425]
[1756994982154,1.50404586,845.7,844.73,0.79241425]
[1756994982352,0.71613952,845.69,844.7,0.79241425]
[1756994982555,0.71613952,845.71,844.71,0.79241425]
[1756994982752,0.78790634,845.58,844.86,0.79241425]
[1756994983051,0.71613952,845.57,844.86,0.79241425]
[1756994983456,0.71613952,845.59,844.88,0.79241425]
[1756994983756,1.50404586,845.63,844.87,0.79241425]
[1756994983956,0.71613952,845.62,844.87,0.79241425]
[1756994984357,0.71613952,845.62,844.86,0.79241425]
[1756994984658,0.71613952,845.63,844.86,0.79241425]
[1756994985464,0.71613952,845.63,844.84,0.79241425]
[1756994985664,0.71613952,845.65,844.84,0.79241425]
[1756994986264,0.71613952,845.65,844.83,0.79241425]
[1756994986462,0.78790634,845.61,844.78,0.79241425]
[1756994986659,0.71613952,845.6,844.77,0.79241425]
[1756994986863,1.50404586,845.6,844.78,0.79241425]
[1756994987064,0.71613952,845.59,844.78,0.79241425]
[1756994987460,0.71613952,845.59,844.68,0.79241425]
[1756994987660,1.50404586,845.74,844.67,0.79241425]
[1756994987863,0.71613952,845.73,844.67,0.79241425]
[1756994988264,1.50404586,845.73,844.66,0.79241425]
[1756994988563,0.71613952,845.72,844.64,0.79241425]
[1756994989364,0.71613952,845.72,844.63,0.79241425]
[1756994989564,0.71613952,845.73,844.63,0.79241425]
[1756994990262,0.71613952,845.73,844.62,0.79241425]
[1756994990466,0.78790634,845.69,844.56,0.79241425]
[1756994990764,0.71613952,845.68,844.56,0.79241425]
[1756994990963,0.78790634,845.6,844.62,0.79241425]
[1756994991169,0.78790634,845.53,844.54,0.79241425]
[1756994991370,0.78790634,845.34,844.31,0.79241425]
[1756994991570,0.71613952,845.33,844.31,0.79241425]
[1756994991767,0.71613952,845.34,844.3,0.79241425]
[1756994991970,0.71613952,845.35,844.3,0.79241425]
[1756994992470,0.71613952,845.35,844.26,0.79241425]
[1756994992765,0.78790634,845.28,844.16,0.79241425]
[1756994992969,0.71613952,845.27,844.15,0.79241425]
[1756994993170,0.71613952,845.28,844.15,0.79241425]
[1756994993366,0.71613952,845.29,844.11,0.79241425]
[1756994993671,0.71613952,845.32,844.12,0.79241425]
[1756994993970,0.78790634,845.32,844.18,0.79241425]
[1756994994168,1.50404586,845.31,844.17,0.79241425]
[1756994994366,1.50404586,845.31,843.96,0.20595494]
[1756994994367,0.71613952,845.3,844.14,0.79241425]
[1756994994571,0.78790634,845.26,844.06,0.79241425]
[1756994994872,0.71613952,845.25,844.06,0.79241425]
[1756994995467,0.71613952,845.25,844.01,0.79241425]
[1756994995669,0.71613952,845.36,844.03,0.79241425]
[1756994995867,0.71613952,845.38,844.03,0.79241425]
[1756994996269,1.50404586,845.38,844.03,0.79241425]
[1756994996469,0.71613952,845.37,844.07,0.79241425]
[1756994996769,0.71613952,845.39,844.07,0.79241425]
[1756994996973,0.78790634,845.38,844.05,0.79241425]
[1756994997170,0.71613952,845.37,844.05,0.79241425]
[1756994997368,0.71613952,845.37,844.04,0.79241425]
[1756994997570,0.71613952,845.38,843.97,0.79241425]
[1756994997770,0.71613952,845.48,843.97,0.79241425]
[1756994998175,0.78790634,845.46,843.96,0.20595494]
[1756994998375,0.71613952,845.45,843.96,0.20595494]
[1756994998676,0.7840125,845.38,843.96,0.20595494]
[1756994998972,0.71613952,845.37,843.96,0.20595494]
[1756994999376,0.71613952,845.37,843.77,0.79086857]
[1756994999572,0.71613952,845.38,843.79,0.20599212]
[1756994999771,0.71613952,845.39,843.79,0.20599212]
[1756995000277,0.7840125,845.33,843.81,0.79086857]
[1756995000472,0.7840125,845.31,843.79,0.20599212]
[1756995000677,0.71613952,845.32,843.79,0.20599212]
[1756995000678,0.71613952,845.3,843.79,0.99686069]
[1756995000871,0.71613952,845.31,843.79,0.99686069]
[1756995001376,0.71613952,845.31,843.79,0.20599212]
[1756995001574,0.71613952,845.34,843.79,0.20599212]
[1756995002476,0.7840125,845.36,843.79,0.20599212]
[1756995002477,0.71613952,845.35,843.79,0.20599212]
[1756995002673,0.7840125,845.34,843.79,0.20599212]
[1756995002875,0.71613952,845.33,843.79,0.20599212]
[1756995003474,0.7840125,845.33,843.79,0.20599212]
[1756995003677,0.71613952,845.32,843.79,0.20599212]
[1756995004476,1.50015202,845.34,843.79,0.20599212]
[1756995004676,0.71613952,845.33,843.79,0.20599212]
[1756995004879,1.50015202,845.33,843.79,0.20599212]
[1756995005080,0.71613952,845.32,843.79,0.20599212]
[1756995005276,0.71613952,845.33,843.79,0.20599212]
[1756995005481,0.71613952,845.34,843.79,0.20599212]
[1756995005681,0.71613952,845.4,843.79,0.20599212]
[1756995005882,0.71613952,845.54,843.79,0.20599212]
[1756995006176,0.71613952,845.57,843.8,0.79086857]
[1756995006381,0.71613952,845.62,843.8,0.79086857]
[1756995006578,0.71613952,845.63,843.81,0.79086857]
[1756995006779,1.50015202,845.63,843.82,0.79086857]
[1756995006976,0.71613952,845.62,843.94,0.79086857]
[1756995007178,0.71613952,845.73,843.94,0.79086857]
[1756995007376,0.71613952,845.74,843.95,0.79086857]
[1756995007582,1.50015202,845.75,843.94,0.79086857]
[1756995007777,0.7840125,845.73,843.95,0.79086857]
[1756995007978,2.6415943,847.13,843.79,0.20599212]
[1756995007979,0.7840125,845.71,843.94,0.79086857]
[1756995008180,1.49330897,845.7,843.94,0.79086857]
[1756995008379,0.70929647,845.69,843.95,0.79086857]
[1756995008578,0.70929647,845.71,843.96,0.79086857]
[1756995008777,0.7840125,845.69,843.94,0.79086857]
[1756995008978,1.49330897,845.68,843.92,0.79086857]
[1756995009177,0.70929647,845.67,843.92,0.79086857]
[1756995009583,0.70929647,845.67,843.79,0.20599212]
[1756995009584,0.70929647,845.67,843.93,0.79086857]
[1756995009883,0.7840125,845.66,843.97,0.79086857]
[1756995010083,0.70929647,845.65,843.97,0.79086857]
[1756995010383,0.70929647,845.65,844.01,0.79086857]
[1756995010779,0.70929647,845.71,844.01,0.79086857]
[1756995011180,0.70929647,845.71,844.0,0.79086857]
[1756995011380,0.70929647,845.73,844.0,0.79086857]
[1756995011985,0.7840125,845.72,843.99,0.79086857]
[1756995012181,0.70929647,845.71,843.99,0.79086857]
[1756995012385,1.49330897,845.71,843.98,0.79086857]
[1756995012582,0.70929647,845.7,843.98,0.79086857]
[1756995013384,0.70929647,845.7,843.96,0.79086857]
[1756995013587,2.6415943,846.91,844.0,0.79086857]
[1756995013588,0.70929647,845.72,844.0,0.79086857]
[1756995013886,1.49330897,845.75,844.0,0.79086857]
[1756995014083,0.70929647,845.74,844.0,0.79086857]
[1756995015191,0.70929647,845.74,844.01,0.79086857]
[1756995015486,0.7840125,845.73,843.99,0.79086857]
[1756995015689,0.70929647,845.72,843.98,0.79086857]
[1756995015893,1.49330897,845.72,843.97,0.79086857]
[1756995016094,0.70929647,845.71,843.98,0.79086857]
[1756995016388,1.5849566,846.15,843.79,0.20599212]
[1756995016389,1.49330897,845.72,843.97,0.79086857]
[1756995016593,0.70929647,845.71,843.97,0.79086857]
[1756995017190,0.70929647,845.71,843.96,0.79086857]
[1756995017494,0.7840125,845.67,843.94,0.79086857]
[1756995017692,0.70929647,845.66,843.94,0.79086857]
[1756995018193,0.70929647,845.66,843.95,0.79086857]
[1756995018589,0.7840125,845.65,843.97,0.79086857]
[1756995018790,1.49330897,845.64,843.96,0.79086857]
[1756995019092,0.70929647,845.63,843.97,0.79086857]
[1756995020195,1.49330897,845.63,843.97,0.79086857]
[1756995020494,0.70929647,845.62,843.98,0.79086857]
[1756995020792,0.70929647,845.62,843.99,0.79086857]
[1756995021095,2.6415943,846.78,843.99,0.79086857]
[1756995021096,0.70929647,845.63,843.99,0.79086857]
[1756995021294,0.70929647,845.63,843.79,0.20599212]
[1756995021295,1.49330897,845.68,844.0,0.79086857]
[1756995021494,0.70929647,845.67,844.0,0.79086857]
[1756995021693,0.70929647,845.67,843.99,0.79086857]
[1756995021897,0.70929647,845.68,843.99,0.79086857]
[1756995022298,1.49330897,845.68,844.0,0.79086857]
[1756995022492,0.70929647,845.67,844.0,0.79086857]
[1756995023493,0.70929647,845.67,844.01,0.79086857]
[1756995023697,0.70929647,845.67,844.0,0.79086857]
[1756995024196,0.70929647,845.67,843.79,1.26329922]
[1756995024197,0.70929647,845.67,844.11,0.79086857]
[1756995024394,0.70929647,845.71,844.24,0.79086857]
[1756995024598,0.70929647,845.9,844.25,0.79086857]
[1756995024794,0.70929647,845.91,844.25,0.79086857]
[1756995025098,0.70929647,845.91,844.26,0.79086857]
[1756995025294,0.70929647,845.92,844.27,0.79086857]
[1756995025498,0.7840125,845.91,844.26,0.79086857]
[1756995025698,0.70929647,845.9,844.26,0.79086857]
[1756995025900,0.70929647,845.9,844.22,0.79086857]
[1756995026102,0.70929647,845.95,844.22,0.79086857]
[1756995026602,1.49330897,845.95,844.23,0.79086857]
[1756995026800,0.70929647,845.94,844.23,0.79086857]
[1756995027200,1.49330897,845.95,844.24,0.79086857]
[1756995027499,1.49330897,845.95,843.98,1.0573071]
[1756995027500,0.70929647,845.94,844.25,0.79086857]
[1756995027802,0.7840125,845.93,844.23,0.79086857]
[1756995028002,0.7840125,845.85,844.15,0.79086857]
[1756995028202,0.7840125,845.82,844.01,0.79086857]
[1756995028403,1.49330897,845.81,844.02,0.79086857]
[1756995028702,0.70929647,845.8,844.02,0.79086857]
[1756995029102,1.49330897,845.8,844.03,0.79086857]
[1756995029402,0.7840125,845.78,844.05,0.79086857]
[1756995029702,0.70929647,845.77,844.05,0.79086857]
[1756995029996,0.7840125,845.78,844.05,0.79086857]
[1756995030203,0.71114697,845.77,844.05,0.79086857]
[1756995030401,1.49515947,845.77,844.06,0.79086857]
[1756995030599,0.71114697,845.76,844.06,0.79086857]
[1756995031302,1.49515947,845.76,844.07,0.79086857]
[1756995031500,0.71114697,845.75,844.07,0.79086857]
[1756995032199,0.71114697,845.75,844.08,0.79086857]
[1756995032405,1.49515947,845.75,844.09,0.79086857]
[1756995032606,0.71114697,845.74,844.09,0.79086857]
[1756995033305,0.71114697,845.74,844.1,0.79086857]
[1756995034208,1.49515947,845.74,844.1,0.79086857]
[1756995034506,1.49515947,845.73,844.1,0.79086857]
[1756995034703,0.7840125,845.62,844.07,0.79086857]
[1756995034908,0.71114697,845.61,844.07,0.79086857]
[1756995035408,1.49515947,845.61,844.08,0.79086857]
[1756995035603,0.71114697,845.6,844.08,0.79086857]
[1756995035802,0.7840125,845.58,844.1,0.79086857]
[1756995036003,0.71114697,845.57,844.1,0.79086857]
[1756995036304,0.7840125,845.52,844.18,0.79086857]
[1756995036503,0.71114697,845.51,844.22,0.79086857]
[1756995036704,0.71114697,845.53,844.22,0.79086857]
[1756995037005,1.49515947,845.53,844.22,0.79086857]
[1756995037204,0.7840125,845.51,844.24,0.79086857]
[1756995037405,1.49515947,845.5,844.25,0.79086857]
[1756995037606,0.71114697,845.49,844.25,0.79086857]
[1756995038308,1.49515947,845.49,844.26,0.79086857]
[1756995038605,1.49515947,845.48,844.28,0.79086857]
[1756995038810,0.71114697,845.47,844.27,0.79086857]
[1756995039107,0.71114697,845.48,844.27,0.79086857]
[1756995039310,1.49515947,845.48,844.29,0.79086857]
[1756995039604,0.71114697,845.47,844.29,0.79086857]
[1756995040206,0.71114697,845.47,844.31,0.79086857]
[1756995040412,0.7840125,845.49,844.33,0.79086857]
[1756995040707,0.71114697,845.48,844.33,0.79086857]
[1756995040907,0.71114697,845.51,844.33,0.79086857]
[1756995041411,0.7840125,845.5,844.36,0.79086857]
[1756995041607,0.71114697,845.49,844.35,0.79086857]
[1756995042412,1.49515947,845.49,844.36,0.79086857]
[1756995042708,0.71114697,845.48,844.35,0.79086857]
[1756995042909,0.71114697,845.49,844.35,0.79086857]
[1756995043312,1.49515947,845.49,844.36,0.79086857]
[1756995043509,0.7840125,845.47,844.38,0.79086857]
[1756995043713,0.71114697,845.46,844.38,0.79086857]
[1756995043910,0.71114697,845.46,844.36,0.79086857]
[1756995044115,0.71114697,845.49,844.36,0.79086857]
[1756995044312,1.49515947,845.49,844.37,0.79086857]
[1756995044615,0.71114697,845.48,844.39,0.79086857]
[1756995044812,0.71114697,845.51,844.39,0.79086857]
[1756995045216,0.71114697,845.51,844.31,0.79086857]
[1756995045513,0.7840125,845.62,844.32,0.79086857]
[1756995045713,0.71114697,845.61,844.32,0.79086857]
[1756995045911,1.49515947,845.61,844.31,0.79086857]
[1756995046115,1.49515947,845.6,844.29,0.79086857]
[1756995046316,1.49515947,845.59,844.29,0.79086857]
[1756995046518,1.49515947,845.58,844.3,0.79086857]
[1756995046718,0.71114697,845.57,844.3,0.79086857]
[1756995047014,1.49515947,845.57,844.3,0.79086857]
[1756995047218,0.71114697,845.56,844.3,0.79086857]
[1756995047418,1.49515947,845.56,844.31,0.79086857]
[1756995047619,0.71114697,845.55,844.31,0.79086857]
[1756995048025,0.71114697,845.55,844.3,0.79086857]
[1756995048224,0.7840125,845.51,844.28,0.79086857]
[1756995048418,1.49515947,845.5,844.28,0.79086857]
[1756995048620,0.71114697,845.49,844.28,0.79086857]
[1756995049119,0.71114697,845.49,844.34,0.79086857]
[1756995049324,0.71114697,845.53,844.35,0.79086857]
[1756995050224,0.71114697,845.53,844.36,0.79086857]
[1756995050824,0.71114697,845.53,844.38,0.79086857]
[1756995051125,0.71114697,845.55,844.39,0.79086857]
[1756995051421,0.7840125,845.57,844.12,1.0573071]
[1756995051422,0.71114697,845.56,844.38,0.79086857]
[1756995051621,0.71114697,845.56,844.39,0.79086857]
[1756995051825,0.71114697,845.57,844.39,0.79086857]
[1756995052525,0.71114697,845.57,844.4,0.79086857]
[1756995052725,0.71114697,845.58,844.4,0.79086857]
[1756995053124,0.71114697,845.58,844.41,0.79086857]
[1756995053325,0.71114697,845.59,844.41,0.79086857]
[1756995053523,0.7840125,845.66,844.41,0.79086857]
[1756995053727,0.71789279,845.65,844.41,0.79086857]
[1756995054221,0.71789279,845.65,844.31,0.79086857]
[1756995054422,0.71789279,845.8,844.72,0.79086857]
[1756995054622,1.0566377,846.06,843.79,0.20599212]
[1756995054623,0.71789279,845.81,844.8,0.79086857]
[1756995054822,0.71789279,845.98,844.8,0.79086857]
[1756995055222,0.71789279,845.98,844.78,0.79086857]
[1756995055423,0.71789279,846.0,844.79,0.79086857]
[1756995055627,0.71789279,846.01,844.79,0.79086857]
[1756995055923,0.71789279,846.01,844.8,0.79086857]
[1756995056126,1.50190529,846.02,844.79,0.79086857]
[1756995056326,0.71789279,846.01,844.77,0.79086857]
[1756995056523,0.71789279,846.03,844.77,0.79086857]
[1756995057224,0.71789279,846.03,844.76,0.79086857]
[1756995057427,1.50190529,846.05,844.76,0.79086857]
[1756995057625,0.71789279,846.04,844.76,0.79086857]
[1756995057826,0.7840125,846.0,844.75,0.79086857]
[1756995058024,1.50190529,845.99,844.73,0.79086857]
[1756995058327,0.7840125,845.83,844.76,0.79086857]
[1756995058527,0.71789279,845.82,844.76,0.79086857]
[1756995058729,1.50190529,845.82,844.77,0.79086857]
[1756995059028,0.71789279,845.81,844.76,0.79086857]
[1756995059229,0.71789279,845.83,844.75,0.79086857]
[1756995060125,1.50190529,845.83,844.73,0.79086857]
[1756995060329,0.71789279,845.82,844.71,0.79086857]
[1756995060729,0.7840125,845.84,844.7,0.79086857]
[1756995061030,0.71701612,845.83,844.7,0.79086857]
[1756995061225,0.71701612,845.83,844.69,0.79086857]
[1756995061526,0.7840125,845.81,844.67,0.79086857]
[1756995061829,0.71701612,845.8,844.67,0.79086857]
[1756995062131,0.71701612,845.8,844.66,0.79086857]
[1756995062430,0.71701612,845.8,843.79,0.20599212]
[1756995062431,1.50102862,845.81,844.67,0.79086857]
[1756995062725,0.71701612,845.8,844.67,0.79086857]
[1756995063331,1.50102862,845.81,844.68,0.79086857]
[1756995063526,0.71701612,845.8,844.68,0.79086857]
[1756995063828,0.71701612,845.8,844.26,1.5859607]
[1756995063829,0.71701612,845.8,844.69,0.79086857]
[1756995064030,0.71701612,845.81,844.69,0.79086857]
[1756995064226,1.50102862,845.81,844.7,0.79086857]
[1756995064430,0.71701612,845.8,844.7,0.79086857]
[1756995064631,0.7840125,845.79,844.69,0.79086857]
[1756995064826,0.7840125,845.75,844.68,0.79086857]
[1756995065032,0.71701612,845.74,844.67,0.79086857]
[1756995065331,1.50102862,845.74,844.68,0.79086857]
[1756995065532,1.50102862,845.74,844.48,1.0573071]
[1756995065533,0.7840125,845.65,844.65,0.79086857]
[1756995065726,0.7840125,845.63,844.61,0.79086857]
[1756995065931,0.71701612,845.62,844.61,0.79086857]
[1756995066132,1.50102862,845.62,844.61,0.79086857]
[1756995066436,0.7840125,845.59,844.58,0.79086857]
[1756995066634,0.71701612,845.58,844.59,0.79086857]
[1756995066933,0.71701612,845.59,844.59,0.79086857]
[1756995067133,1.50102862,845.59,844.58,0.79086857]
[1756995067430,0.71701612,845.58,844.58,0.79086857]
[1756995068030,0.71701612,845.58,844.59,0.79086857]
[1756995068534,0.71701612,845.58,843.79,0.20599212]
[1756995068535,0.71701612,845.58,844.61,0.79086857]
[1756995068830,1.50102862,845.6,844.62,0.79086857]
[1756995069030,0.71701612,845.59,844.65,0.79086857]
[1756995069231,0.71701612,845.61,844.76,0.79086857]
[1756995069433,0.71701612,845.65,844.76,0.79086857]
[1756995069936,0.71701612,845.65,844.78,0.79086857]
[1756995070237,0.71701612,845.66,844.79,0.79086857]
[1756995070438,0.7840125,845.95,844.83,0.79086857]
[1756995070636,0.71589594,845.94,844.83,0.79086857]
[1756995071033,0.71589594,845.95,844.83,0.79086857]